[Event "*** Titled Tuesday Blitz"]
[Site "Chess.com"]
[Date "2020.03.03"]
[Round "6"]
[White "ChessicallyInclined"]
[Black "ajian"]
[Result "1-0"]
[WhiteElo "2491"]
[BlackElo "2313"]
[TimeControl "180+1"]
[EndTime "14:03:14 PST"]
[Termination "ChessicallyInclined won by resignation"]

1. d4 {[%clk 0:02:58.6]} 1... Nf6 {[%clk 0:02:56.9]} 2. c4 {[%clk 0:02:57.6]}
2... c6 {[%clk 0:02:55.6]} 3. Nf3 {[%clk 0:02:57.5]} 3... d5 {[%clk 0:02:55.9]}
4. e3 {[%clk 0:02:57.5]} 4... Bf5 {[%clk 0:02:55]} 5. Nc3 {[%clk 0:02:57.1]}
5... e6 {[%clk 0:02:53.9]} 6. Nh4 {[%clk 0:02:55.7]} 6... Bg4 {[%clk 0:02:53.5]}
7. Qb3 {[%clk 0:02:53]} 7... Qc7 {[%clk 0:02:53.3]} 8. h3 {[%clk 0:02:49.7]}
8... Bh5 {[%clk 0:02:53.7]} 9. g4 {[%clk 0:02:43.5]} 9... Bg6 {[%clk 0:02:53.6]}
10. Nxg6 {[%clk 0:02:41.3]} 10... hxg6 {[%clk 0:02:54.5]} 11. Bg2 {[%clk
0:02:41.6]} 11... Nbd7 {[%clk 0:02:52.1]} 12. cxd5 {[%clk 0:02:38.8]} 12... exd5
{[%clk 0:02:45.8]} 13. Bd2 {[%clk 0:02:39]} 13... Nb6 {[%clk 0:02:33.6]} 14.
O-O-O {[%clk 0:02:30.9]} 14... Be7 {[%clk 0:02:15.8]} 15. Kb1 {[%clk 0:02:28.3]}
15... O-O {[%clk 0:02:02.4]} 16. g5 {[%clk 0:02:15]} 16... Nh5 {[%clk
0:01:58.9]} 17. h4 {[%clk 0:02:07.1]} 17... Nc4 {[%clk 0:01:51.7]} 18. Bc1
{[%clk 0:02:02.8]} 18... a5 {[%clk 0:01:26.3]} 19. Qc2 {[%clk 0:01:40.3]} 19...
a4 {[%clk 0:01:13.5]} 20. Nxd5 {[%clk 0:01:22.8]} 20... cxd5 {[%clk 0:00:48.9]}
21. Bxd5 {[%clk 0:01:23.7]} 21... Rac8 {[%clk 0:00:45.7]} 22. Qxg6 {[%clk
0:01:20.4]} 22... Qb6 {[%clk 0:00:41.6]} 23. Qxb6 {[%clk 0:01:13.4]} 23... Nxb6
{[%clk 0:00:39.5]} 24. Bxb7 {[%clk 0:01:13.4]} 24... Rb8 {[%clk 0:00:35.3]} 25.
Bf3 {[%clk 0:01:09.7]} 25... g6 {[%clk 0:00:34.9]} 26. Rd3 {[%clk 0:00:51]}
26... Nc4 {[%clk 0:00:29]} 27. b3 {[%clk 0:00:43.5]} 27... axb3 {[%clk
0:00:27.8]} 28. Rxb3 {[%clk 0:00:44.1]} 28... Ng7 {[%clk 0:00:17.3]} 29. Be2
{[%clk 0:00:37]} 29... Nd6 {[%clk 0:00:12.2]} 30. Bd3 {[%clk 0:00:26.7]} 30...
Ndf5 {[%clk 0:00:10.2]} 31. h5 {[%clk 0:00:21.5]} 31... gxh5 {[%clk 0:00:08.2]}
32. Bxf5 {[%clk 0:00:18.8]} 32... Nxf5 {[%clk 0:00:09.1]} 33. Rxh5 {[%clk
0:00:18.7]} 33... Kg7 {[%clk 0:00:09]} 34. Bb2 {[%clk 0:00:10.9]} 34... Rxb3
{[%clk 0:00:07.9]} 35. axb3 {[%clk 0:00:10.9]} 35... Kg6 {[%clk 0:00:08.4]} 36.
Rh1 {[%clk 0:00:10.7]} 36... Bxg5 {[%clk 0:00:07.2]} 37. Rg1 {[%clk 0:00:10.8]}
37... Kh6 {[%clk 0:00:05.2]} 38. f4 {[%clk 0:00:10.9]} 38... Bf6 {[%clk
0:00:05.3]} 39. e4 {[%clk 0:00:10.5]} 39... Nxd4 {[%clk 0:00:04.6]} 40. e5
{[%clk 0:00:10.1]} 40... Bxe5 {[%clk 0:00:02.6]} 41. fxe5 {[%clk 0:00:10.3]}
41... Nf5 {[%clk 0:00:03.1]} 42. Bc1+ {[%clk 0:00:09.6]} 42... Kh7 {[%clk
0:00:02.4]} 43. Rg5 {[%clk 0:00:09]} 43... Nh6 {[%clk 0:00:02]} 44. Rh5 {[%clk
0:00:09.1]} 44... Kg7 {[%clk 0:00:01.6]} 45. Bxh6+ {[%clk 0:00:08.5]} 45... Kg6
{[%clk 0:00:02.1]} 46. Bxf8 {[%clk 0:00:09.4]} 46... Kxh5 {[%clk 0:00:03]} 47.
Be7 {[%clk 0:00:09.7]} 47... Kg6 {[%clk 0:00:03]} 48. Bf6 {[%clk 0:00:10]} 48...
Kf5 {[%clk 0:00:03.3]} 49. b4 {[%clk 0:00:10.5]} 49... Ke6 {[%clk 0:00:04.2]}
50. Kc2 {[%clk 0:00:11.1]} 1-0

[Event "*** Titled Tuesday Blitz"]
[Site "Chess.com"]
[Date "2020.03.03"]
[Round "6"]
[White "NeverEverForever1990"]
[Black "TST2014"]
[Result "1/2-1/2"]
[WhiteElo "2365"]
[BlackElo "2573"]
[TimeControl "180+1"]
[EndTime "14:03:19 PST"]
[Termination "Game drawn by stalemate"]

1. e4 {[%clk 0:02:55.5]} 1... c5 {[%clk 0:02:59.4]} 2. Nf3 {[%clk 0:02:53.2]}
2... Nc6 {[%clk 0:02:59.2]} 3. Bb5 {[%clk 0:02:52.4]} 3... g6 {[%clk 0:02:58.9]}
4. O-O {[%clk 0:02:50.2]} 4... Bg7 {[%clk 0:02:59]} 5. Re1 {[%clk 0:02:37.1]}
5... Nf6 {[%clk 0:02:57.9]} 6. e5 {[%clk 0:02:35.3]} 6... Nd5 {[%clk 0:02:56.9]}
7. Nc3 {[%clk 0:02:36.2]} 7... Nc7 {[%clk 0:02:54.4]} 8. Bxc6 {[%clk 0:02:33.5]}
8... dxc6 {[%clk 0:02:53.5]} 9. h3 {[%clk 0:02:33.9]} 9... Ne6 {[%clk
0:02:43.3]} 10. d3 {[%clk 0:02:33]} 10... O-O {[%clk 0:02:40.8]} 11. a4 {[%clk
0:02:33.5]} 11... b6 {[%clk 0:02:32.2]} 12. Ng5 {[%clk 0:02:27.9]} 12... Nd4
{[%clk 0:02:29.5]} 13. Bf4 {[%clk 0:02:23.8]} 13... h6 {[%clk 0:02:22.3]} 14.
Nge4 {[%clk 0:02:22]} 14... Bf5 {[%clk 0:02:16]} 15. Ne2 {[%clk 0:01:57.2]}
15... Ne6 {[%clk 0:02:05.8]} 16. N4g3 {[%clk 0:01:52.1]} 16... Nxf4 {[%clk
0:02:02.9]} 17. Nxf4 {[%clk 0:01:49]} 17... e6 {[%clk 0:01:56.5]} 18. Nxf5
{[%clk 0:01:43.2]} 18... exf5 {[%clk 0:01:53.7]} 19. Qf3 {[%clk 0:01:32.2]}
19... Qc7 {[%clk 0:01:44.8]} 20. e6 {[%clk 0:01:29.4]} 20... Rae8 {[%clk
0:01:37.8]} 21. exf7+ {[%clk 0:01:24.4]} 21... Kxf7 {[%clk 0:01:37.5]} 22. c3
{[%clk 0:01:16]} 22... Be5 {[%clk 0:01:32.9]} 23. Ne2 {[%clk 0:00:59.8]} 23...
Qd6 {[%clk 0:01:30.4]} 24. a5 {[%clk 0:00:57.5]} 24... Qd5 {[%clk 0:01:27.3]}
25. Qxd5+ {[%clk 0:00:43.9]} 25... cxd5 {[%clk 0:01:26.9]} 26. axb6 {[%clk
0:00:43.4]} 26... axb6 {[%clk 0:01:27.1]} 27. d4 {[%clk 0:00:43.6]} 27... Bb8
{[%clk 0:01:21.3]} 28. Kf1 {[%clk 0:00:32.7]} 28... Re7 {[%clk 0:01:16.2]} 29.
Nc1 {[%clk 0:00:30.1]} 29... Rfe8 {[%clk 0:01:04.2]} 30. Nd3 {[%clk 0:00:26.8]}
30... Rxe1+ {[%clk 0:00:59.8]} 31. Rxe1 {[%clk 0:00:24.4]} 31... Rxe1+ {[%clk
0:00:47.3]} 32. Kxe1 {[%clk 0:00:25.3]} 32... Bd6 {[%clk 0:00:47.8]} 33. Kd2
{[%clk 0:00:16.9]} 33... c4 {[%clk 0:00:48]} 34. Ne1 {[%clk 0:00:13.8]} 34... b5
{[%clk 0:00:47.1]} 35. g3 {[%clk 0:00:11.2]} 35... Ke6 {[%clk 0:00:45.9]} 36. h4
{[%clk 0:00:09.3]} 36... b4 {[%clk 0:00:46.1]} 37. f4 {[%clk 0:00:07.2]} 37...
b3 {[%clk 0:00:44.7]} 38. Nf3 {[%clk 0:00:07.1]} 38... Kf6 {[%clk 0:00:41.7]}
39. Ne5 {[%clk 0:00:06.7]} 39... g5 {[%clk 0:00:40.8]} 40. hxg5+ {[%clk
0:00:06.4]} 40... hxg5 {[%clk 0:00:40.9]} 41. fxg5+ {[%clk 0:00:07.3]} 41... Kg7
{[%clk 0:00:31.2]} 42. Kc1 {[%clk 0:00:02.6]} 42... Kh7 {[%clk 0:00:16.6]} 43.
Kd2 {[%clk 0:00:01.8]} 43... Kg7 {[%clk 0:00:15.7]} 44. Kc1 {[%clk 0:00:02.1]}
44... Be7 {[%clk 0:00:16.1]} 45. Nf3 {[%clk 0:00:01.8]} 45... Kg6 {[%clk
0:00:15.9]} 46. Kd2 {[%clk 0:00:02.3]} 46... Bxg5+ {[%clk 0:00:15.7]} 47. Nxg5
{[%clk 0:00:02.6]} 47... Kxg5 {[%clk 0:00:15.9]} 48. Ke3 {[%clk 0:00:03.5]}
48... Kg4 {[%clk 0:00:15.4]} 49. Kf2 {[%clk 0:00:04.4]} 49... f4 {[%clk
0:00:15]} 50. gxf4 {[%clk 0:00:05.3]} 50... Kxf4 {[%clk 0:00:15.9]} 51. Ke2
{[%clk 0:00:05.8]} 51... Ke4 {[%clk 0:00:16.3]} 52. Kd2 {[%clk 0:00:06.2]} 52...
Kf3 {[%clk 0:00:16.4]} 53. Kc1 {[%clk 0:00:07.1]} 53... Ke3 {[%clk 0:00:16.7]}
54. Kb1 {[%clk 0:00:08]} 54... Kd3 {[%clk 0:00:16]} 55. Ka1 {[%clk 0:00:08.9]}
55... Kd2 {[%clk 0:00:15.9]} 56. Kb1 {[%clk 0:00:09.8]} 56... Kd1 {[%clk
0:00:16.3]} 57. Ka1 {[%clk 0:00:10.7]} 57... Kc1 {[%clk 0:00:15]} 1/2-1/2

[Event "*** Titled Tuesday Blitz"]
[Site "Chess.com"]
[Date "2020.03.03"]
[Round "6"]
[White "AntonSmirnov"]
[Black "IMTominho"]
[Result "0-1"]
[WhiteElo "2931"]
[BlackElo "2852"]
[TimeControl "180+1"]
[EndTime "14:03:26 PST"]
[Termination "IMTominho won on time"]

1. e4 {[%clk 0:03:00.9]} 1... e5 {[%clk 0:02:58.6]} 2. Nf3 {[%clk 0:03:01.1]}
2... Nf6 {[%clk 0:02:57.8]} 3. Nxe5 {[%clk 0:02:58.1]} 3... d6 {[%clk
0:02:56.5]} 4. Nf3 {[%clk 0:02:56.6]} 4... Nxe4 {[%clk 0:02:55.3]} 5. Nc3 {[%clk
0:02:56.7]} 5... Nxc3 {[%clk 0:02:53.6]} 6. dxc3 {[%clk 0:02:57.6]} 6... Be7
{[%clk 0:02:52.4]} 7. Bf4 {[%clk 0:02:57.8]} 7... O-O {[%clk 0:02:49.6]} 8. Qd2
{[%clk 0:02:57.8]} 8... Nd7 {[%clk 0:02:47.5]} 9. O-O-O {[%clk 0:02:57.7]} 9...
Nc5 {[%clk 0:02:43.5]} 10. Bc4 {[%clk 0:02:54.1]} 10... Be6 {[%clk 0:02:34.2]}
11. Bxe6 {[%clk 0:02:53.6]} 11... Nxe6 {[%clk 0:02:31.8]} 12. Rhe1 {[%clk
0:02:45.2]} 12... Re8 {[%clk 0:02:27.7]} 13. Kb1 {[%clk 0:02:39.8]} 13... a5
{[%clk 0:02:11.6]} 14. a3 {[%clk 0:02:13.6]} 14... b5 {[%clk 0:02:05.8]} 15. Nd4
{[%clk 0:02:06.9]} 15... Nxd4 {[%clk 0:02:02.5]} 16. Qxd4 {[%clk 0:02:06.7]}
16... Qd7 {[%clk 0:01:56.9]} 17. Qd3 {[%clk 0:01:54.5]} 17... Bf6 {[%clk
0:01:45.6]} 18. Rxe8+ {[%clk 0:01:49.4]} 18... Rxe8 {[%clk 0:01:45.9]} 19. Be3
{[%clk 0:01:49]} 19... Rb8 {[%clk 0:01:42.6]} 20. Bd4 {[%clk 0:01:47]} 20...
Bxd4 {[%clk 0:01:40.3]} 21. Qxd4 {[%clk 0:01:46.8]} 21... Re8 {[%clk 0:01:38.5]}
22. Qd3 {[%clk 0:01:31.2]} 22... h6 {[%clk 0:01:34.2]} 23. b3 {[%clk 0:01:29.2]}
23... a4 {[%clk 0:01:32.4]} 24. b4 {[%clk 0:01:28.2]} 24... Qc6 {[%clk 0:01:32]}
25. f3 {[%clk 0:01:26.9]} 25... Re5 {[%clk 0:01:28.3]} 26. Kb2 {[%clk
0:01:26.1]} 26... h5 {[%clk 0:01:26.3]} 27. Rd2 {[%clk 0:01:23.7]} 27... Qe8
{[%clk 0:01:23.3]} 28. c4 {[%clk 0:01:16]} 28... Re3 {[%clk 0:01:20.1]} 29. Qd4
{[%clk 0:01:12.6]} 29... bxc4 {[%clk 0:01:19.9]} 30. Qxc4 {[%clk 0:01:12.7]}
30... Qe5+ {[%clk 0:01:20.4]} 31. Qd4 {[%clk 0:01:10.8]} 31... Qg5 {[%clk
0:01:20.1]} 32. h4 {[%clk 0:01:06.2]} 32... Qe7 {[%clk 0:01:16.7]} 33. b5 {[%clk
0:00:54.8]} 33... Qe5 {[%clk 0:01:13.9]} 34. Qxe5 {[%clk 0:00:53.6]} 34... Rxe5
{[%clk 0:01:14.6]} 35. c4 {[%clk 0:00:53.1]} 35... Re3 {[%clk 0:01:12.2]} 36.
Ka2 {[%clk 0:00:47.8]} 36... Rc3 {[%clk 0:01:06.2]} 37. b6 {[%clk 0:00:35.2]}
37... cxb6 {[%clk 0:01:07.1]} 38. Rxd6 {[%clk 0:00:34.9]} 38... Rxc4 {[%clk
0:01:03.9]} 39. Rxb6 {[%clk 0:00:27.3]} 39... Rxh4 {[%clk 0:01:02.3]} 40. Rb4
{[%clk 0:00:24.8]} 40... g5 {[%clk 0:00:59.1]} 41. Rxh4 {[%clk 0:00:19.1]} 41...
gxh4 {[%clk 0:01:00]} 42. Kb2 {[%clk 0:00:20]} 42... Kg7 {[%clk 0:00:53.4]} 43.
Kc3 {[%clk 0:00:20.3]} 43... Kf6 {[%clk 0:00:50.5]} 44. Kb4 {[%clk 0:00:09.7]}
44... Kf5 {[%clk 0:00:50.2]} 45. Kxa4 {[%clk 0:00:10.6]} 45... Kf4 {[%clk
0:00:46.9]} 46. Kb4 {[%clk 0:00:11.3]} 46... Kg3 {[%clk 0:00:45.9]} 47. a4
{[%clk 0:00:11.9]} 47... Kxg2 {[%clk 0:00:45.8]} 48. a5 {[%clk 0:00:12.6]} 48...
h3 {[%clk 0:00:46.1]} 49. a6 {[%clk 0:00:13.2]} 49... h2 {[%clk 0:00:46.8]} 50.
a7 {[%clk 0:00:14.1]} 50... h1=Q {[%clk 0:00:47.4]} 51. a8=Q {[%clk 0:00:15]}
51... Qe1+ {[%clk 0:00:44.3]} 52. Kc5 {[%clk 0:00:13.4]} 52... Qe3+ {[%clk
0:00:43.7]} 53. Kd6 {[%clk 0:00:13.4]} 53... Qxf3 {[%clk 0:00:43.7]} 54. Qg8+
{[%clk 0:00:13.1]} 54... Kf1 {[%clk 0:00:42.3]} 55. Qg5 {[%clk 0:00:12]} 55...
f6 {[%clk 0:00:40.8]} 56. Qc1+ {[%clk 0:00:11.6]} 56... Kg2 {[%clk 0:00:40.5]}
57. Qc2+ {[%clk 0:00:11.3]} 57... Kg3 {[%clk 0:00:37.7]} 58. Qg6+ {[%clk
0:00:08.9]} 58... Kh3 {[%clk 0:00:38]} 59. Qf7 {[%clk 0:00:06.1]} 59... h4
{[%clk 0:00:37.7]} 60. Qa2 {[%clk 0:00:04.3]} 60... Kg3 {[%clk 0:00:37.4]} 61.
Ke6 {[%clk 0:00:03.7]} 61... h3 {[%clk 0:00:36.8]} 62. Qc2 {[%clk 0:00:02.2]}
62... h2 {[%clk 0:00:35.1]} 63. Qc7+ {[%clk 0:00:02.3]} 63... Qf4 {[%clk
0:00:32.4]} 64. Qc3+ {[%clk 0:00:02.6]} 64... Kg4 {[%clk 0:00:31.4]} 65. Qa1
{[%clk 0:00:01.1]} 65... Qe4+ {[%clk 0:00:29.9]} 66. Kf7 {[%clk 0:00:01]} 66...
h1=Q {[%clk 0:00:29.5]} 0-1

[Event "*** Titled Tuesday Blitz"]
[Site "Chess.com"]
[Date "2020.03.03"]
[Round "6"]
[White "ama18"]
[Black "Martins-BR"]
[Result "1-0"]
[WhiteElo "2518"]
[BlackElo "2328"]
[TimeControl "180+1"]
[EndTime "14:03:28 PST"]
[Termination "ama18 won on time"]

1. e4 {[%clk 0:03:00.9]} 1... e6 {[%clk 0:02:58.5]} 2. d4 {[%clk 0:03:00.6]}
2... d5 {[%clk 0:02:58.3]} 3. Nc3 {[%clk 0:03:01.2]} 3... Bb4 {[%clk 0:02:55.3]}
4. Qd3 {[%clk 0:03:00.2]} 4... dxe4 {[%clk 0:02:49.9]} 5. Qxe4 {[%clk
0:03:01.1]} 5... Nf6 {[%clk 0:02:49]} 6. Qh4 {[%clk 0:03:01.1]} 6... c5 {[%clk
0:02:36.4]} 7. dxc5 {[%clk 0:02:58.8]} 7... Bxc3+ {[%clk 0:02:29.3]} 8. bxc3
{[%clk 0:02:58.2]} 8... Nc6 {[%clk 0:02:29.2]} 9. Bg5 {[%clk 0:02:38.2]} 9... h6
{[%clk 0:02:22.7]} 10. Bxf6 {[%clk 0:02:35.9]} 10... Qxf6 {[%clk 0:02:16.3]} 11.
Qxf6 {[%clk 0:02:34.4]} 11... gxf6 {[%clk 0:02:16.5]} 12. Nf3 {[%clk 0:02:26.9]}
12... Bd7 {[%clk 0:02:12.6]} 13. Nd4 {[%clk 0:02:24.9]} 13... Ne7 {[%clk
0:02:06.6]} 14. Rb1 {[%clk 0:02:23.3]} 14... O-O-O {[%clk 0:02:02.4]} 15. c4
{[%clk 0:02:09.2]} 15... a6 {[%clk 0:01:42.2]} 16. Bd3 {[%clk 0:02:06.1]} 16...
f5 {[%clk 0:01:36.9]} 17. O-O {[%clk 0:02:01.3]} 17... Kc7 {[%clk 0:01:34.8]}
18. Rfe1 {[%clk 0:01:58.9]} 18... Ng6 {[%clk 0:01:30.4]} 19. g3 {[%clk
0:01:56.2]} 19... h5 {[%clk 0:01:29.6]} 20. Nf3 {[%clk 0:01:45.2]} 20... h4
{[%clk 0:01:25.2]} 21. Ne5 {[%clk 0:01:33.5]} 21... Nxe5 {[%clk 0:01:24.1]} 22.
Rxe5 {[%clk 0:01:34.4]} 22... Bc6 {[%clk 0:01:20.1]} 23. Rbe1 {[%clk 0:01:23.5]}
23... hxg3 {[%clk 0:01:15]} 24. fxg3 {[%clk 0:01:24.4]} 24... Rdg8 {[%clk
0:01:07.6]} 25. Rf1 {[%clk 0:01:19.7]} 25... Rg4 {[%clk 0:00:59.9]} 26. Be2
{[%clk 0:01:07.1]} 26... Rd4 {[%clk 0:00:51.5]} 27. Bd3 {[%clk 0:01:04.3]} 27...
Rg8 {[%clk 0:00:48.4]} 28. Kf2 {[%clk 0:00:53]} 28... f4 {[%clk 0:00:33.1]} 29.
gxf4 {[%clk 0:00:53.9]} 29... Rxf4+ {[%clk 0:00:32]} 30. Ke1 {[%clk 0:00:54]}
30... Rxf1+ {[%clk 0:00:28.9]} 31. Kxf1 {[%clk 0:00:47.5]} 31... Rg2 {[%clk
0:00:22.6]} 32. h4 {[%clk 0:00:47]} 32... Rh2 {[%clk 0:00:21.1]} 33. Rh5 {[%clk
0:00:40]} 33... Kd7 {[%clk 0:00:18.8]} 34. Rh7 {[%clk 0:00:39]} 34... Ke8 {[%clk
0:00:17.9]} 35. h5 {[%clk 0:00:38.8]} 35... Kf8 {[%clk 0:00:17.8]} 36. h6 {[%clk
0:00:38]} 36... Kg8 {[%clk 0:00:17.2]} 37. Rg7+ {[%clk 0:00:37.3]} 37... Kf8
{[%clk 0:00:17.3]} 38. Rh7 {[%clk 0:00:37.1]} 38... Kg8 {[%clk 0:00:17.3]} 39.
Kg1 {[%clk 0:00:33.4]} 39... Rh1+ {[%clk 0:00:16.5]} 40. Kf2 {[%clk 0:00:33.3]}
40... Rh3 {[%clk 0:00:16.3]} 41. a3 {[%clk 0:00:28.7]} 41... e5 {[%clk
0:00:14.5]} 42. Rg7+ {[%clk 0:00:11.1]} 42... Kf8 {[%clk 0:00:14.4]} 43. Rg5
{[%clk 0:00:07.1]} 43... e4 {[%clk 0:00:10.2]} 44. Be2 {[%clk 0:00:04.2]} 44...
Rxh6 {[%clk 0:00:10]} 45. Ke3 {[%clk 0:00:04.5]} 45... Rh3+ {[%clk 0:00:09.3]}
46. Kd4 {[%clk 0:00:04.8]} 46... Rxa3 {[%clk 0:00:08.9]} 47. Bg4 {[%clk
0:00:04.5]} 47... Ke7 {[%clk 0:00:08.5]} 48. Re5+ {[%clk 0:00:04.2]} 48... Kf6
{[%clk 0:00:07.6]} 49. Bf5 {[%clk 0:00:03.9]} 49... Ra1 {[%clk 0:00:04.6]} 50.
Bxe4 {[%clk 0:00:04.2]} 50... Rd1+ {[%clk 0:00:04.5]} 51. Bd3 {[%clk 0:00:04.4]}
51... a5 {[%clk 0:00:04.1]} 52. Rf5+ {[%clk 0:00:04.7]} 52... Kg7 {[%clk
0:00:03.7]} 53. Rg5+ {[%clk 0:00:04.9]} 53... Kf8 {[%clk 0:00:04]} 54. Rh5
{[%clk 0:00:04.5]} 54... a4 {[%clk 0:00:04.1]} 55. Rh8+ {[%clk 0:00:04.7]} 55...
Ke7 {[%clk 0:00:04.4]} 56. Ra8 {[%clk 0:00:05.3]} 56... f5 {[%clk 0:00:03.9]}
57. Ke3 {[%clk 0:00:04.5]} 57... Kf6 {[%clk 0:00:03.5]} 58. Rf8+ {[%clk
0:00:03.4]} 58... Kg7 {[%clk 0:00:03.6]} 59. Ra8 {[%clk 0:00:02.6]} 1-0

[Event "*** Titled Tuesday Blitz"]
[Site "Chess.com"]
[Date "2020.03.03"]
[Round "6"]
[White "Fuerza777"]
[Black "floplover"]
[Result "1-0"]
[WhiteElo "2212"]
[BlackElo "2329"]
[TimeControl "180+1"]
[EndTime "14:03:29 PST"]
[Termination "Fuerza777 won on time"]

1. d4 {[%clk 0:03:00.9]} 1... Nf6 {[%clk 0:02:59.6]} 2. c4 {[%clk 0:03:01]} 2...
e6 {[%clk 0:03:00.5]} 3. g3 {[%clk 0:03:00.9]} 3... d5 {[%clk 0:03:00.3]} 4. Nf3
{[%clk 0:03:00.6]} 4... Be7 {[%clk 0:02:59.7]} 5. Bg2 {[%clk 0:03:00.8]} 5...
O-O {[%clk 0:02:59.7]} 6. O-O {[%clk 0:03:01.4]} 6... dxc4 {[%clk 0:03:00.1]} 7.
Qc2 {[%clk 0:03:01.5]} 7... b5 {[%clk 0:02:58.4]} 8. a4 {[%clk 0:03:00.5]} 8...
b4 {[%clk 0:02:57.6]} 9. Nfd2 {[%clk 0:03:00.7]} 9... c6 {[%clk 0:02:51.3]} 10.
Nxc4 {[%clk 0:03:00.3]} 10... Ba6 {[%clk 0:02:43.5]} 11. Rd1 {[%clk 0:02:37.9]}
11... Nd5 {[%clk 0:01:58]} 12. e4 {[%clk 0:02:35.3]} 12... Nb6 {[%clk
0:01:54.8]} 13. Ne5 {[%clk 0:02:24.1]} 13... Qc8 {[%clk 0:01:41.6]} 14. Be3
{[%clk 0:02:15.7]} 14... N8d7 {[%clk 0:01:28.4]} 15. a5 {[%clk 0:02:00.1]} 15...
Nxe5 {[%clk 0:01:27.1]} 16. axb6 {[%clk 0:01:56.8]} 16... Nc4 {[%clk 0:01:19.1]}
17. b7 {[%clk 0:01:39.8]} 17... Qxb7 {[%clk 0:01:17.5]} 18. Bc1 {[%clk
0:01:34.1]} 18... Rfd8 {[%clk 0:01:02.9]} 19. Bf1 {[%clk 0:01:30.6]} 19... b3
{[%clk 0:00:59.8]} 20. Qc3 {[%clk 0:01:25.8]} 20... Bb4 {[%clk 0:00:47.1]} 21.
Qxb3 {[%clk 0:01:25.5]} 21... Na5 {[%clk 0:00:39.4]} 22. Bxa6 {[%clk 0:01:07.2]}
22... Nxb3 {[%clk 0:00:38.6]} 23. Bxb7 {[%clk 0:01:07.4]} 23... Nxa1 {[%clk
0:00:38.2]} 24. Bxa8 {[%clk 0:01:07.7]} 24... Rxa8 {[%clk 0:00:34.5]} 25. Nc3
{[%clk 0:01:00.8]} 25... Nb3 {[%clk 0:00:31.6]} 26. Bf4 {[%clk 0:00:59.9]} 26...
Rd8 {[%clk 0:00:30.4]} 27. Kf1 {[%clk 0:00:57.2]} 27... Rxd4 {[%clk 0:00:27]}
28. Rxd4 {[%clk 0:00:51.2]} 28... Nxd4 {[%clk 0:00:27.9]} 29. Be3 {[%clk
0:00:48.8]} 29... Bxc3 {[%clk 0:00:22.7]} 30. bxc3 {[%clk 0:00:48.1]} 30... Nb5
{[%clk 0:00:23.3]} 31. c4 {[%clk 0:00:48.1]} 31... Nd6 {[%clk 0:00:23.4]} 32.
Bxa7 {[%clk 0:00:42.6]} 32... Nxe4 {[%clk 0:00:23.5]} 33. Ke2 {[%clk 0:00:43.3]}
33... Kf8 {[%clk 0:00:20.9]} 34. f3 {[%clk 0:00:42.9]} 34... Nd6 {[%clk
0:00:21]} 35. Bc5 {[%clk 0:00:41.7]} 35... Ke7 {[%clk 0:00:20.6]} 36. Kd3 {[%clk
0:00:42.1]} 36... Kd7 {[%clk 0:00:20.7]} 37. Bd4 {[%clk 0:00:41.2]} 37... f6
{[%clk 0:00:20.9]} 38. f4 {[%clk 0:00:41.2]} 38... h5 {[%clk 0:00:19.7]} 39. Bf2
{[%clk 0:00:40.9]} 39... Nf5 {[%clk 0:00:20.1]} 40. h3 {[%clk 0:00:40.9]} 40...
Kd6 {[%clk 0:00:20.3]} 41. g4 {[%clk 0:00:41.3]} 41... hxg4 {[%clk 0:00:20.9]}
42. hxg4 {[%clk 0:00:41.7]} 42... Nh6 {[%clk 0:00:21.6]} 43. g5 {[%clk
0:00:41.5]} 43... Nf5 {[%clk 0:00:21.3]} 44. Ke4 {[%clk 0:00:38.8]} 44... Kc7
{[%clk 0:00:19.9]} 45. gxf6 {[%clk 0:00:38.6]} 45... gxf6 {[%clk 0:00:19.9]} 46.
Bc5 {[%clk 0:00:38.6]} 46... Kb7 {[%clk 0:00:19.8]} 47. Bf8 {[%clk 0:00:38.4]}
47... Ka6 {[%clk 0:00:20.1]} 48. Bc5 {[%clk 0:00:36.7]} 48... Ka5 {[%clk
0:00:20.1]} 49. Kf3 {[%clk 0:00:36]} 49... Ka4 {[%clk 0:00:20.2]} 50. Bf8 {[%clk
0:00:32.4]} 50... Kb3 {[%clk 0:00:20]} 51. c5 {[%clk 0:00:32.9]} 51... Kc4
{[%clk 0:00:20.2]} 52. Ke4 {[%clk 0:00:32.7]} 52... Ng3+ {[%clk 0:00:18.3]} 53.
Kf3 {[%clk 0:00:32.8]} 53... Nf5 {[%clk 0:00:17.2]} 54. Ke4 {[%clk 0:00:33.1]}
54... Nd4 {[%clk 0:00:16.5]} 55. Bg7 {[%clk 0:00:31.7]} 55... Kxc5 {[%clk
0:00:14.9]} 56. Bxf6 {[%clk 0:00:31.1]} 56... Ne2 {[%clk 0:00:13.8]} 57. Ke5
{[%clk 0:00:29.5]} 57... Kb4 {[%clk 0:00:12.9]} 58. Bg5 {[%clk 0:00:26.5]} 58...
c5 {[%clk 0:00:12.7]} 59. Kxe6 {[%clk 0:00:26.9]} 59... c4 {[%clk 0:00:13]} 60.
f5 {[%clk 0:00:27.2]} 60... Nd4+ {[%clk 0:00:11]} 61. Ke5 {[%clk 0:00:21]} 61...
Nf3+ {[%clk 0:00:10.8]} 62. Kf4 {[%clk 0:00:17]} 62... Nxg5 {[%clk 0:00:11.7]}
63. Kxg5 {[%clk 0:00:17.3]} 63... c3 {[%clk 0:00:12.3]} 64. f6 {[%clk
0:00:17.5]} 64... c2 {[%clk 0:00:13.2]} 65. Kg6 {[%clk 0:00:16.8]} 65... c1=Q
{[%clk 0:00:14.1]} 66. f7 {[%clk 0:00:15.8]} 66... Qc8 {[%clk 0:00:15]} 67. Kg7
{[%clk 0:00:15.7]} 67... Qf8+ {[%clk 0:00:15.9]} 68. Kxf8 {[%clk 0:00:15.4]} 1-0